{"text_format":"2","workbook":"xlsx","n_sheets":1,"sheets":["Sheet1"],"not_rendered":{"charts":0,"images":0,"macros":0,"external_links":0,"defined_names":2,"comments":0,"pivot_tables":0},"unopened":[],"bounds":{"document_bytes":16777216,"sheet_cells":100000,"run_cost":"one","rows_first":2000,"rows_last":500,"rows_between":2000,"halvings":0,"cell_chars":16384,"cell_head_chars":4096},"cells_cut":0,"cells_raw":0,"read":"whole","date_system":"1900"}

{"sheet":"Sheet1","index":0,"n_rows":23,"n_cols":16,"rows_kept":23,"cut":false,"hidden":false,"merged":[[0,0,1,0],[0,1,1,1],[0,3,1,3],[0,4,1,4],[0,5,1,5],[0,2,1,2],[0,9,1,9],[0,15,1,15],[0,11,0,13],[0,6,1,6],[0,8,1,8],[0,7,1,7],[0,10,1,10],[0,14,1,14]]}
["DIPARTIMENTO EROGANTE","CORSO DI STUDIO","TIPOLOGIA DEL CORSO","CURRICULUM","ANNO","SEMESTRE","MODULO DI INSEGNAMENTO (UD)","UD_SSD","PARTIZIONE","TAF","UD_CFU","TIP. DIDATTICA (ORE)",null,null,"TOTALE ORE DOCENTE","RCA (Vedi Avviso di vacanza \"RICHIESTA DI COPERTURA GiA' AVANZATA\")"]
[{"$nulls":11},"LEZ","ESE\nTIR","LAB"]
["DIPARTIMENTO DI SCIENZE DELLA TERRA E GEOAMBIENTALI","CONSERVAZIONE E RESTAURO DEI BENI CULTURALI","CU5","Comune",1,2,"PREISTORIA E PROTOSTORIA","L-ANT/01",null,"C",7,56,0,0,{"$f":"SUM(L3:N3)","v":56},"RCA"]
["DIPARTIMENTO DI SCIENZE DELLA TERRA E GEOAMBIENTALI","CONSERVAZIONE E RESTAURO DEI BENI CULTURALI","CU5","Comune",3,1,"FISICA TECNICA AMBIENTALE","ING-IND/11",null,null,6,40,12,0,{"$f":"SUM(L4:N4)","v":52},"RCA"]
["DIPARTIMENTO DI SCIENZE DELLA TERRA E GEOAMBIENTALI","CONSERVAZIONE E RESTAURO DEI BENI CULTURALI","CU5","Comune",3,2,"STORIA DELL'ARTE MEDIEVALE","L-ART/01",null,"B",6,48,0,0,{"$f":"SUM(L5:N5)","v":48},"RCA"]
["DIPARTIMENTO DI SCIENZE DELLA TERRA E GEOAMBIENTALI","CONSERVAZIONE E RESTAURO DEI BENI CULTURALI","CU5","Comune",4,1,"STORIA DELL'ARTE MODERNA","L-ART/02",null,"B",6,48,0,0,{"$f":"SUM(L6:N6)","v":48},"RCA"]
["DIPARTIMENTO DI SCIENZE DELLA TERRA E GEOAMBIENTALI","CONSERVAZIONE E RESTAURO DEI BENI CULTURALI","CU5","Comune",5,1,"DISEGNO E RILIEVO","ICAR/17",null,"B",6,48,0,0,{"$f":"SUM(L7:N7)","v":48},"RCA"]
["DIPARTIMENTO DI SCIENZE DELLA TERRA E GEOAMBIENTALI","CONSERVAZIONE E RESTAURO DEI BENI CULTURALI","CU5","Comune",5,1,"LEGISLAZIONE DEI BENI CULTURALI","IUS/10",null,"C",6,48,0,0,{"$f":"SUM(L8:N8)","v":48},"RCA"]
["DIPARTIMENTO DI SCIENZE DELLA TERRA E GEOAMBIENTALI","CONSERVAZIONE E RESTAURO DEI BENI CULTURALI","CU5","Comune",5,1,"ECONOMIA E GESTIONE DELLE IMPRESE","SECS/08",null,"C",6,48,0,0,{"$f":"SUM(L9:N9)","v":48},"RCA"]
["DIPARTIMENTO DI SCIENZE DELLA TERRA E GEOAMBIENTALI","CONSERVAZIONE E RESTAURO DEI BENI CULTURALI","CU5","Comune",5,2,"STORIA DELL'ARCHITETTURA","ICAR/18",null,"C",7,56,0,0,{"$f":"SUM(L10:N10)","v":56},"RCA"]
["DIPARTIMENTO DI SCIENZE DELLA TERRA E GEOAMBIENTALI","SCIENZE GEOLOGICHE (D.M.270/04)","TRI","Comune",1,2,"INFORMATICA E ANALISI DATI GEOLOGICI MOD. 1","ING-INF/05",null,"A",6,32,32,0,{"$f":"SUM(L11:N11)","v":64}]
["DIPARTIMENTO DI CHIMICA","SCIENZE AMBIENTALI (D.M.270/04)","TRI","Comune",1,1,"INFORMATICA","INF/01",null,"F",4,27,15,0,{"$f":"SUM(L12:N12)","v":42}]
["DIPARTIMENTO DI CHIMICA","SCIENZE AMBIENTALI (D.M.270/04)","TRI","Comune",1,1,"MATEMATICA","MAT/05",null,"A",8,54,15,0,{"$f":"SUM(L13:N13)","v":69},"RCA"]
["DIPARTIMENTO DI CHIMICA","SCIENZA E TECNOLOGIE DEI MATERIALI (D.M.270/04)","MAG","Scientifico",1,1,"CRESCITA E CARATTERIZZAZIONE DI DISPOSITIVI A SEMICONDUTTORE","FIS/01",null,"B",2,24,0,30,{"$f":"SUM(L14:N14)","v":54}]
["DIPARTIMENTO INTERATENEO DI FISICA","PHYSICS (D.M.270/04)","MAG","particle astroparticle physics and advanced technologies",1,2,"QUANTUM TECHNOLOGIES","FIS/02",null,"B",6,40,15,0,{"$f":"SUM(L15:N15)","v":55}]
["DIPARTIMENTO INTERATENEO DI FISICA","PHYSICS (D.M.270/04)","MAG","particle astroparticle physics and advanced technologies",1,2,"COMPUTING TECHNOLOGIES","FIS/01",null,"B",6,40,15,0,{"$f":"SUM(L16:N16)","v":55}]
["DIPARTIMENTO INTERATENEO DI FISICA","SCIENZA E TECNOLOGIA DEI MATERIALI","TRI","Comune",1,2,"ANALISI MATEMATICA II","MAT/05",null,"A",10,64,30,0,{"$f":"SUM(L17:N17)","v":94}]
["DIPARTIMENTO DI INFORMATICA","DATA SCIENCE (D.M.270/04)","MAG","Comune",2,1,"DEEP LEARNING","INF/01",null,"D",6,48,0,0,{"$f":"SUM(L18:N18)","v":48}]
["DIPARTIMENTO DI INFORMATICA","DATA SCIENCE (D.M.270/04)","MAG","Comune",2,1,"ETICA NELL'INNOVAZIONE TECNOLOGICA","M-FIL/03",null,"D",6,48,0,0,{"$f":"SUM(L19:N19)","v":48},"RCA"]
["DIPARTIMENTO DI INFORMATICA","DATA SCIENCE (D.M.270/04)","MAG","Comune",2,1,"LOGICA E INTELLIGENZA ARTIFICIALE","INF/01",null,"D",6,48,0,0,{"$f":"SUM(L20:N20)","v":48}]
["DIPARTIMENTO DI INFORMATICA","SICUREZZA INFORMATICA","MAG","Comune",2,1,"INFORMATICA E DIRITTO","IUS/01",null,"D",6,48,0,0,{"$f":"SUM(L21:N21)","v":48},"RCA"]
["DIPARTIMENTO DI INFORMATICA","SICUREZZA INFORMATICA","MAG","Comune",2,1,"TEORIA DELL'INFORMAZIONE","INF/01",null,"D",6,48,0,0,{"$f":"SUM(L22:N22)","v":48}]
["DIPARTIMENTO DI INFORMATICA","SICUREZZA INFORMATICA","MAG","Comune",2,1,"LOGICA APPLICATA","INF/01",null,"D",6,48,0,0,{"$f":"SUM(L23:N23)","v":48}]